[Event "ROU-chT 1st League 2019"]
[Site "Mamaia"]
[Date "2019.09.23"]
[Round "3.24"]
[White "Petrisor, Adrian-Marian"]
[Black "Ileana, George"]
[Result "1-0"]
[ECO "A06"]
[WhiteElo "2411"]
[BlackElo "2349"]
[Annotator "NA"]
[PlyCount "89"]
[EventDate "2019.09.21"]
[EventType "team-tourn"]
[EventCountry "ROU"]
[SourceTitle "playchess.com"]
[Source "ChessBase"]
[SourceQuality "1"]
[TimeControl "40/5400+30:1800+30"]

1. Nf3 {[%emt 0:00:00]} d5 {[%emt 0:00:00]} 2. g3 {[%emt 0:00:25]} Nf6 {[%emt 0:00:00]} 3. Bg2 {[%emt 0:00:07]} c6 {[%emt 0:00:00]} 4. O-O {[%emt 0:00:27]} h6 {[%emt 0:00:30]} 5. c4 {[%emt 0:03:01]} Nbd7 {[%emt 0:09:52]} 6. cxd5 {[%emt 0:04:31]} cxd5 {[%emt 0:00:05]} 7. d4 {[%emt 0:00:13]} e6 {[%emt 0:00:27]} 8. Nc3 {[%emt 0:00:34]} a6 {[%emt 0:00:27]} 9. Bf4 {[%emt 0:02:12]} Nh5 {[%emt 0:05:19]} 10. Bd2 {[%emt 0:01:32]} Be7 {[%emt 0:00:49]} 11. Qb3 {[%emt 0:05:34]} O-O {[%emt 0:00:13]} 12. Rfc1 {[%emt 0:01:36]} b5 {[%emt 0:06:45]} 13. Nxd5 {[%emt 0:02:41]} exd5 {[%emt 0:06:42]} 14. Qxd5 {[%emt 0:00:14]} Nxg3 {[%emt 0:00:03]} 15. hxg3 {[%emt 0:01:23]} Ra7 {[%emt 0:00:03]} 16. Bf4 {[%emt 0:10:07]} g5 {[%emt 0:06:51]} 17. Be3 {[%emt 0:03:46]} Bb7 {[%emt 0:05:10]} 18. Qf5 {[%emt 0:00:45]} Nf6 {[%emt 0:00:41]} 19. Ne5 {[%emt 0:04:00]} Bxg2 {[%emt 0:01:14]} 20. Kxg2 {[%emt 0:00:06]} Qd5+ {[%emt 0:02:59]} 21. f3 {[%emt 0:00:45]} Nh5 {[%emt 0:16:29]} 22. Qh3 {[%emt 0:12:36]} Ng7 {[%emt 0:00:05]} 23. Bf2 {[%emt 0:01:58]} h5 {[%emt 0:00:41]} 24. e4 {[%emt 0:00:14]} Qa8 {[%emt 0:06:35]} 25. d5 {[%emt 0:00:50]} Bf6 {[%emt 0:04:12]} 26. Nc6 {[%emt 0:07:11]} Rc7 {[%emt 0:00:03]} 27. e5 {[%emt 0:00:21]} Rxc6 {[%emt 0:00:05]} 28. dxc6 {[%emt 0:04:43]} Bxe5 {[%emt 0:00:05]} 29. Rc2 {[%emt 0:02:25]} Qd8 {[%emt 0:03:01]} 30. Qd7 {[%emt 0:00:22]} Ne6 {[%emt 0:00:20]} 31. Re1 {[%emt 0:03:21]} Bf6 {[%emt 0:02:22]} 32. Qxd8 {[%emt 0:05:47]} Rxd8 {[%emt 0:00:04]} 33. c7 {[%emt 0:00:11]} Rc8 {[%emt 0:00:05]} 34. Bb6 {[%emt 0:00:04]} Kf8 {[%emt 0:00:26]} 35. b4 {[%emt 0:02:16]} Be7 {[%emt 0:00:31]} 36. a3 {[%emt 0:01:53]} Bd6 {[%emt 0:00:14]} 37. Rc6 {[%emt 0:04:48]} Ke7 {[%emt 0:00:20]} 38. Ba5 {[%emt 0:02:43]} Kd7 {[%emt 0:01:59]} 39. Rxa6 {[%emt 0:00:14]} Nxc7 {[%emt 0:00:55]} 40. Ra7 {[%emt 0:00:00]} h4 {[%emt 0:00:00]} 41. gxh4 {[%emt 0:02:20]} gxh4 {[%emt 0:03:59]} 42. Kh3 {[%emt 0:00:22]} f5 {[%emt 0:01:54]} 43. Rc1 {[%emt 0:01:41]} Bf4 {[%emt 0:01:40]} 44. Rc5 {[%emt 0:00:46]} Bd6 {[%emt 0:00:06]} 45. Bxc7 {[%emt 0:01:31]} 1-0

[Event "ROU-chT 1st League 2019"]
[Site "Mamaia"]
[Date "2019.09.23"]
[Round "3.29"]
[White "Szabo, Attila"]
[Black "Ghimpu, Samuel-Timotei"]
[Result "1-0"]
[ECO "A05"]
[WhiteElo "2239"]
[BlackElo "2158"]
[Annotator "NA"]
[PlyCount "113"]
[EventDate "2019.09.21"]
[EventType "team-tourn"]
[EventCountry "ROU"]
[SourceTitle "playchess.com"]
[Source "ChessBase"]
[SourceQuality "1"]
[TimeControl "40/5400+30:1800+30"]

1. Nf3 {[%emt 0:00:00]} Nf6 {[%emt 0:00:00]} 2. c4 {[%emt 0:00:28]} g6 {[%emt 0:00:00]} 3. Nc3 {[%emt 0:01:25]} Bg7 {[%emt 0:00:00]} 4. e4 {[%emt 0:00:32]} c5 {[%emt 0:00:00]} 5. d4 {[%emt 0:00:13]} cxd4 {[%emt 0:00:06]} 6. Nxd4 {[%emt 0:00:10]} d6 {[%emt 0:00:01]} 7. Be2 {[%emt 0:00:58]} Nc6 {[%emt 0:00:04]} 8. Be3 {[%emt 0:00:11]} O-O {[%emt 0:00:07]} 9. O-O {[%emt 0:01:37]} Bd7 {[%emt 0:00:10]} 10. Qd2 {[%emt 0:02:02]} Nxd4 {[%emt 0:00:09]} 11. Bxd4 {[%emt 0:00:12]} Bc6 {[%emt 0:00:02]} 12. f3 {[%emt 0:04:10]} a5 {[%emt 0:00:25]} 13. b3 {[%emt 0:03:27]} Nd7 {[%emt 0:00:09]} 14. Bxg7 {[%emt 0:08:34]} Kxg7 {[%emt 0:00:01]} 15. Qd4+ {[%emt 0:00:12]} Kg8 {[%emt 0:00:05]} 16. Rfd1 {[%emt 0:01:32]} Nc5 {[%emt 0:03:03]} 17. Rab1 {[%emt 0:03:49]} Qb6 {[%emt 0:06:02]} 18. Kh1 {[%emt 0:11:31]} Qb4 {[%emt 0:03:46]} 19. Qd2 {[%emt 0:02:54]} Rfc8 {[%emt 0:26:58]} 20. a4 {[%emt 0:28:26]} Rd8 {[%emt 0:19:05]} 21. Qc2 {[%emt 0:04:15]} e5 {[%emt 0:03:23]} 22. Bf1 {[%emt 0:04:40]} Ne6 {[%emt 0:00:52]} 23. Qd3 {[%emt 0:06:06]} Rf8 {[%emt 0:05:43]} 24. h3 {[%emt 0:00:55]} Rad8 {[%emt 0:00:31]} 25. Kh2 {[%emt 0:01:37]} Kg7 {[%emt 0:00:19]} 26. Kh1 {[%emt 0:01:58]} Kh8 {[%emt 0:09:13]} 27. Kh2 {[%emt 0:00:31]} Rd7 {[%emt 0:00:31]} 28. Rd2 {[%emt 0:02:40]} f5 {[%emt 0:03:15]} 29. exf5 {[%emt 0:04:55]} gxf5 {[%emt 0:00:09]} 30. Qe3 {[%emt 0:01:27]} Rg7 {[%emt 0:11:17]} 31. Nd5 {[%emt 0:00:43]} f4 {[%emt 0:04:43]} 32. Qf2 {[%emt 0:00:47]} Qc5 {[%emt 0:02:50]} 33. Qxc5 {[%emt 0:00:27]} Nxc5 {[%emt 0:00:09]} 34. Nc3 {[%emt 0:00:40]} Rf6 {[%emt 0:00:50]} 35. Bd3 {[%emt 0:00:46]} Rh6 {[%emt 0:00:40]} 36. Bc2 {[%emt 0:01:34]} Rg3 {[%emt 0:01:53]} 37. Ne4 {[%emt 0:01:13]} Bxe4 {[%emt 0:01:06]} 38. Bxe4 {[%emt 0:00:13]} Rg8 {[%emt 0:00:48]} 39. Rbd1 {[%emt 0:00:42]} Nxb3 40. Rxd6 {[%emt 0:00:00]} Rxd6 {[%emt 0:00:00]} 41. Rxd6 {[%emt 0:00:19]} Nc5 {[%emt 0:14:57]} 42. Rd5 {[%emt 0:04:51]} Nxe4 {[%emt 0:03:16]} 43. fxe4 {[%emt 0:00:03]} Rg3 {[%emt 0:01:45]} 44. Rxa5 {[%emt 0:05:28]} Rc3 {[%emt 0:00:25]} 45. Rxe5 {[%emt 0:00:27]} Rxc4 {[%emt 0:00:09]} 46. a5 {[%emt 0:00:12]} Ra4 {[%emt 0:00:38]} 47. Kg1 {[%emt 0:01:32]} Ra2 {[%emt 0:01:40]} 48. Rb5 {[%emt 0:01:54]} Kg8 {[%emt 0:04:06]} 49. Kf1 {[%emt 0:01:03]} Ra4 {[%emt 0:00:18]} 50. Kf2 {[%emt 0:11:13]} Rxe4 {[%emt 0:01:11]} 51. Rxb7 {[%emt 0:02:22]} Ra4 {[%emt 0:00:01]} 52. Ra7 {[%emt 0:01:13]} Ra3 {[%emt 0:00:06]} 53. a6 {[%emt 0:00:39]} Kh8 {[%emt 0:01:53]} 54. Ke2 {[%emt 0:00:45]} Kg8 {[%emt 0:00:11]} 55. Kd2 {[%emt 0:01:15]} Ra2+ {[%emt 0:00:13]} 56. Kd3 {[%emt 0:00:04]} Rxg2 {[%emt 0:00:13]} 57. Rb7 {[%emt 0:00:22]} 1-0

[Event "ROU-chT 1st League 2019"]
[Site "Mamaia"]
[Date "2019.09.23"]
[Round "3.30"]
[White "Coca, Cristi-Iulian"]
[Black "Vasiesiu, Victor"]
[Result "1/2-1/2"]
[ECO "C01"]
[WhiteElo "2106"]
[BlackElo "2251"]
[Annotator "NA"]
[PlyCount "34"]
[EventDate "2019.09.21"]
[EventType "team-tourn"]
[EventCountry "ROU"]
[SourceTitle "playchess.com"]
[Source "ChessBase"]
[SourceQuality "1"]
[TimeControl "40/5400+30:1800+30"]

1. e4 {[%emt 0:00:00]} e6 {[%emt 0:00:00]} 2. d4 {[%emt 0:00:00]} d5 {[%emt 0:00:00]} 3. exd5 {[%emt 0:00:00]} exd5 {[%emt 0:00:00]} 4. Nf3 {[%emt 0:00:00]} Nc6 {[%emt 0:00:00]} 5. Bb5 {[%emt 0:00:47]} Bd6 {[%emt 0:02:15]} 6. O-O {[%emt 0:02:10]} Nge7 {[%emt 0:00:06]} 7. Re1 {[%emt 0:05:05]} O-O {[%emt 0:04:17]} 8. c3 {[%emt 0:02:11]} Ng6 {[%emt 0:01:24]} 9. Nbd2 {[%emt 0:08:30]} Qf6 {[%emt 0:00:33]} 10. Nf1 {[%emt 0:02:17]} Bg4 {[%emt 0:01:32]} 11. Be2 {[%emt 0:04:15]} Nf4 {[%emt 0:04:35]} 12. Bxf4 {[%emt 0:00:17]} Bxf4 {[%emt 0:00:50]} 13. h3 {[%emt 0:06:03]} Bf5 {[%emt 0:09:05]} 14. Bd3 {[%emt 0:01:28]} Rae8 {[%emt 0:03:55]} 15. Qc2 {[%emt 0:01:24]} Bxd3 {[%emt 0:01:12]} 16. Qxd3 {[%emt 0:00:07]} Nd8 {[%emt 0:00:58]} 17. Ne3 {[%emt 0:03:33]} Bxe3 {[%emt 0:09:43]} 1/2-1/2

[Event "ROU-chT 1st League 2019"]
[Site "Mamaia"]
[Date "2019.09.24"]
[Round "4.3"]
[White "Rogozenco, Dorian"]
[Black "Carmaciu, Lucian-Catalin"]
[Result "1/2-1/2"]
[ECO "A40"]
[WhiteElo "2491"]
[BlackElo "2375"]
[Annotator "ChessBase"]
[PlyCount "87"]
[EventDate "2019.09.21"]
[EventType "team-tourn"]
[EventCountry "ROU"]
[SourceTitle "playchess.com"]
[Source "ChessBase"]
[SourceQuality "1"]
[TimeControl "40/5400+30:1800+30"]

1. d4 {[%emt 0:00:00]} g6 {[%emt 0:00:00]} 2. c4 {[%emt 0:01:43]} Bg7 {[%emt 0:00:00]} 3. Nf3 {[%emt 0:01:13]} c5 {[%emt 0:00:02]} 4. d5 {[%emt 0:07:13]} e5 {[%emt 0:00:58]} 5. e4 {[%emt 0:01:39]} d6 {[%emt 0:00:06]} 6. Nc3 {[%emt 0:00:04]} Ne7 {[%emt 0:00:15]} 7. h4 {[%emt 0:00:11]} h6 {[%emt 0:06:10]} 8. h5 {[%emt 0:17:20]} g5 {[%emt 0:00:06]} 9. Bd3 {[%emt 0:00:58]} O-O {[%emt 0:06:18]} 10. Nh2 {[%emt 0:16:26]} f5 {[%emt 0:01:13]} 11. g4 {[%emt 0:21:28]} f4 {[%emt 0:04:23]} 12. f3 {[%emt 0:00:49]} Bd7 {[%emt 0:04:10]} 13. O-O {[%emt 0:00:54]} Nc8 {[%emt 0:00:14]} 14. a3 {[%emt 0:01:47]} a5 {[%emt 0:01:54]} 15. Rf2 {[%emt 0:02:30]} Bf6 {[%emt 0:03:57]} 16. Rb1 {[%emt 0:01:32]} Na6 {[%emt 0:01:59]} 17. b3 {[%emt 0:01:10]} Qe8 {[%emt 0:00:10]} 18. Rfb2 {[%emt 0:00:06]} Na7 {[%emt 0:01:04]} 19. Qe2 {[%emt 0:02:17]} Bd8 {[%emt 0:08:42]} 20. Nf1 {[%emt 0:02:38]} Rb8 {[%emt 0:01:26]} 21. Bd2 {[%emt 0:02:56]} Rf7 {[%emt 0:01:59]} 22. Be1 {[%emt 0:00:05]} b6 {[%emt 0:17:49]} 23. Bf2 {[%emt 0:02:08]} Ra8 {[%emt 0:02:08]} 24. Nd2 {[%emt 0:00:48]} Bc7 {[%emt 0:03:27]} 25. Qf1 {[%emt 0:02:14]} Qb8 {[%emt 0:20:07]} 26. Kh2 {[%emt 0:02:05]} Be8 {[%emt 0:00:48]} 27. Na2 {[%emt 0:00:22]} Nc8 {[%emt 0:02:43]} 28. Ra1 {[%emt 0:02:10]} Bd8 {[%emt 0:00:26]} 29. Nb1 {[%emt 0:00:07]} Rfa7 {[%emt 0:03:41]} 30. Nbc3 {[%emt 0:00:09]} Kf8 {[%emt 0:00:28]} 31. Rab1 {[%emt 0:00:17]} Qc7 {[%emt 0:01:45]} 32. Kg2 {[%emt 0:03:48]} Kg8 {[%emt 0:02:49]} 33. Qc1 {[%emt 0:00:46]} Kf8 {[%emt 0:00:10]} 34. Be2 {[%emt 0:01:37]} Kg8 {[%emt 0:00:07]} 35. Rc2 {[%emt 0:01:36]} Kf8 {[%emt 0:01:43]} 36. b4 {[%emt 0:01:26]} axb4 {[%emt 0:00:38]} 37. axb4 {[%emt 0:00:06]} Qe7 {[%emt 0:03:18]} 38. Nb5 {[%emt 0:03:00]} Bxb5 {[%emt 0:00:49]} 39. cxb5 {[%emt 0:00:05]} Nb8 {[%emt 0:00:12]} 40. bxc5 {[%emt 0:00:00]} Rxa2 {[%emt 0:00:00]} 41. c6 {[%emt 0:02:02]} Rxc2 {[%emt 0:02:58]} 42. Qxc2 {[%emt 0:00:15]} Qc7 {[%emt 0:00:14]} 43. Rb2 {[%emt 0:03:34]} Ra1 {[%emt 0:06:33]} 44. Ra2 {[%emt 0:02:00]} 1/2-1/2

[Event "ROU-chT 1st League 2019"]
[Site "Mamaia"]
[Date "2019.09.24"]
[Round "4.4"]
[White "Pisu, Robert-Daniel"]
[Black "Manolache, Marius"]
[Result "1-0"]
[ECO "A56"]
[WhiteElo "2244"]
[BlackElo "2548"]
[Annotator "ChessBase"]
[PlyCount "119"]
[EventDate "2019.09.21"]
[EventType "team-tourn"]
[EventCountry "ROU"]
[SourceTitle "playchess.com"]
[Source "ChessBase"]
[SourceQuality "1"]
[TimeControl "40/5400+30:1800+30"]

1. d4 {[%emt 0:00:00]} Nf6 {[%emt 0:02:00]} 2. c4 {[%emt 0:00:00]} c5 {[%emt 0:00:32]} 3. d5 {[%emt 0:00:09]} g6 {[%emt 0:00:12]} 4. Nc3 {[%emt 0:00:18]} Bg7 {[%emt 0:00:09]} 5. e4 {[%emt 0:00:38]} d6 {[%emt 0:00:07]} 6. Nf3 {[%emt 0:01:50]} O-O {[%emt 0:00:12]} 7. Be2 {[%emt 0:00:59]} e6 {[%emt 0:01:31]} 8. O-O {[%emt 0:00:24]} Re8 {[%emt 0:03:22]} 9. h3 {[%emt 0:05:21]} exd5 {[%emt 0:05:13]} 10. exd5 {[%emt 0:00:39]} Ne4 {[%emt 0:00:40]} 11. Nxe4 {[%emt 0:07:35]} Rxe4 {[%emt 0:00:07]} 12. Bd3 {[%emt 0:01:29]} Re8 {[%emt 0:00:06]} 13. Bg5 {[%emt 0:13:01]} Qb6 {[%emt 0:08:54]} 14. Re1 {[%emt 0:04:16]} Bd7 {[%emt 0:01:03]} 15. Rxe8+ {[%emt 0:05:37]} Bxe8 {[%emt 0:00:04]} 16. Qe2 {[%emt 0:01:06]} Nd7 {[%emt 0:00:52]} 17. Bf4 {[%emt 0:16:26]} a5 {[%emt 0:11:24]} 18. h4 {[%emt 0:15:33]} Nf6 {[%emt 0:05:22]} 19. Rb1 {[%emt 0:05:28]} Qc7 {[%emt 0:11:14]} 20. Re1 {[%emt 0:00:11]} Kf8 {[%emt 0:05:00]} 21. Ng5 {[%emt 0:02:25]} Rd8 {[%emt 0:05:01]} 22. b3 {[%emt 0:08:13]} Ra8 {[%emt 0:13:12]} 23. Qe6 {[%emt 0:00:58]} Rd8 {[%emt 0:01:04]} 24. Qe2 {[%emt 0:00:48]} Kg8 {[%emt 0:11:21]} 25. Ne4 {[%emt 0:01:41]} Nxe4 {[%emt 0:01:02]} 26. Qxe4 {[%emt 0:00:02]} Kf8 {[%emt 0:02:23]} 27. h5 {[%emt 0:02:11]} f5 {[%emt 0:00:31]} 28. Qf3 {[%emt 0:00:39]} Bf7 {[%emt 0:00:12]} 29. Qg3 {[%emt 0:01:24]} Rd7 {[%emt 0:00:52]} 30. hxg6 hxg6 31. Re6 {[%emt 0:02:11]} Qd8 {[%emt 0:04:33]} 32. Rxd6 {[%emt 0:00:37]} Kg8 {[%emt 0:03:15]} 33. Rxd7 {[%emt 0:01:26]} Qxd7 {[%emt 0:00:02]} 34. Be5 {[%emt 0:00:30]} Bf8 {[%emt 0:01:00]} 35. Qh4 {[%emt 0:00:30]} Bg7 {[%emt 0:00:05]} 36. Qg3 {[%emt 0:00:32]} Bf8 {[%emt 0:00:55]} 37. Qh2 {[%emt 0:00:09]} Bg7 {[%emt 0:00:06]} 38. Bxg7 {[%emt 0:00:04]} Kxg7 {[%emt 0:00:04]} 39. Qe5+ {[%emt 0:00:03]} Kg8 {[%emt 0:01:01]} 40. f4 {[%emt 0:00:00]} Qd8 {[%emt 0:00:00]} 41. Be2 {[%emt 0:04:58]} a4 {[%emt 0:01:43]} 42. Bf3 {[%emt 0:02:30]} axb3 {[%emt 0:00:11]} 43. axb3 {[%emt 0:00:02]} b5 {[%emt 0:00:04]} 44. d6 {[%emt 0:06:59]} bxc4 {[%emt 0:00:06]} 45. bxc4 {[%emt 0:00:04]} Bxc4 {[%emt 0:00:51]} 46. Qxc5 {[%emt 0:00:20]} Be6 {[%emt 0:00:47]} 47. Bd5 {[%emt 0:01:42]} Qe8 {[%emt 0:03:50]} 48. Qc6 {[%emt 0:02:57]} Qxc6 {[%emt 0:00:38]} 49. Bxc6 {[%emt 0:00:02]} Kf7 {[%emt 0:00:09]} 50. Kf2 {[%emt 0:00:08]} Bb3 {[%emt 0:00:28]} 51. Ke3 {[%emt 0:00:44]} Ke6 {[%emt 0:00:53]} 52. d7 {[%emt 0:00:04]} Ke7 {[%emt 0:00:02]} 53. Kd4 {[%emt 0:00:07]} Bc2 {[%emt 0:00:24]} 54. Ke5 {[%emt 0:02:20]} Bb3 {[%emt 0:04:12]} 55. Bb5 {[%emt 0:01:24]} Ba2 {[%emt 0:01:42]} 56. g3 {[%emt 0:01:55]} Bb3 {[%emt 0:00:10]} 57. d8=Q+ {[%emt 0:03:38]} Kxd8 {[%emt 0:00:05]} 58. Kf6 {[%emt 0:00:03]} Bc2 {[%emt 0:00:30]} 59. Bc4 {[%emt 0:00:06]} g5 {[%emt 0:01:28]} 60. fxg5 {[%emt 0:00:06]} 1-0

[Event "ROU-chT 1st League 2019"]
[Site "Mamaia"]
[Date "2019.09.24"]
[Round "4.5"]
[White "Anton, Teodor"]
[Black "Dobrin, Ionut-Alexandru"]
[Result "1-0"]
[ECO "A57"]
[WhiteElo "2445"]
[BlackElo "2089"]
[Annotator "NA"]
[PlyCount "111"]
[EventDate "2019.09.21"]
[EventType "team-tourn"]
[EventCountry "ROU"]
[SourceTitle "playchess.com"]
[Source "ChessBase"]
[SourceQuality "1"]
[TimeControl "40/5400+30:1800+30"]

1. d4 {[%emt 0:00:00]} Nf6 {[%emt 0:00:09]} 2. c4 {[%emt 0:00:00]} c5 {[%emt 0:00:16]} 3. d5 {[%emt 0:00:05]} b5 {[%emt 0:00:10]} 4. cxb5 {[%emt 0:00:27]} a6 {[%emt 0:00:09]} 5. b6 {[%emt 0:00:06]} d6 {[%emt 0:00:56]} 6. Nc3 {[%emt 0:00:31]} Nbd7 {[%emt 0:00:48]} 7. Nf3 {[%emt 0:00:14]} g6 {[%emt 0:00:19]} 8. e4 {[%emt 0:00:21]} Bg7 {[%emt 0:00:38]} 9. a4 {[%emt 0:00:35]} a5 {[%emt 0:01:19]} 10. Bb5 {[%emt 0:00:30]} O-O {[%emt 0:02:24]} 11. O-O {[%emt 0:02:24]} Bb7 {[%emt 0:02:38]} 12. Re1 {[%emt 0:01:06]} Nxb6 {[%emt 0:02:14]} 13. Bf4 {[%emt 0:02:13]} Ne8 {[%emt 0:11:16]} 14. Qd2 {[%emt 0:04:10]} Nc7 {[%emt 0:03:30]} 15. Bh6 {[%emt 0:02:14]} e6 {[%emt 0:06:21]} 16. Bxg7 {[%emt 0:01:44]} Kxg7 {[%emt 0:00:13]} 17. dxe6 {[%emt 0:08:27]} fxe6 {[%emt 0:00:47]} 18. Rad1 {[%emt 0:00:31]} Nc8 {[%emt 0:08:39]} 19. Ne5 {[%emt 0:06:31]} Qh4 {[%emt 0:11:54]} 20. Nc6 {[%emt 0:16:52]} Nxb5 {[%emt 0:03:53]} 21. axb5 {[%emt 0:00:27]} Bxc6 {[%emt 0:00:38]} 22. bxc6 {[%emt 0:00:06]} Ra6 {[%emt 0:03:39]} 23. c7 {[%emt 0:01:30]} Qe7 {[%emt 0:00:54]} 24. Nb5 {[%emt 0:00:50]} Rb6 {[%emt 0:01:53]} 25. Qxa5 {[%emt 0:01:56]} Qd7 {[%emt 0:00:28]} 26. Na3 {[%emt 0:02:25]} Rc6 {[%emt 0:06:53]} 27. Nc4 {[%emt 0:05:25]} Rxc7 {[%emt 0:03:01]} 28. Re3 {[%emt 0:05:19]} Qe7 {[%emt 0:04:21]} 29. Red3 {[%emt 0:00:37]} Rd8 {[%emt 0:00:56]} 30. Qd2 {[%emt 0:00:44]} Rb7 {[%emt 0:01:52]} 31. h3 {[%emt 0:08:10]} Rbd7 {[%emt 0:02:59]} 32. Ne5 {[%emt 0:00:33]} Rc7 {[%emt 0:00:14]} 33. Ng4 {[%emt 0:05:07]} Rf8 {[%emt 0:01:43]} 34. Qc3+ {[%emt 0:01:03]} Kf7 {[%emt 0:03:08]} 35. Nf6 {[%emt 0:00:37]} Qxf6 {[%emt 0:01:37]} 36. Rf3 {[%emt 0:00:23]} Qxf3 {[%emt 0:00:02]} 37. Qxf3+ {[%emt 0:00:05]} Kg8 {[%emt 0:01:39]} 38. Qc3 {[%emt 0:00:53]} Rd7 {[%emt 0:01:00]} 39. e5 {[%emt 0:00:42]} Rf5 {[%emt 0:01:45]} 40. g4 {[%emt 0:00:00]} Rxe5 {[%emt 0:00:00]} 41. Qxe5 {[%emt 0:00:48]} dxe5 {[%emt 0:02:03]} 42. Rxd7 {[%emt 0:00:06]} Nb6 {[%emt 0:00:06]} 43. Rc7 {[%emt 0:01:21]} Nc4 {[%emt 0:02:42]} 44. Rxc5 {[%emt 0:01:39]} Nxb2 {[%emt 0:00:07]} 45. Rxe5 {[%emt 0:00:03]} Kf7 {[%emt 0:00:16]} 46. Rb5 {[%emt 0:00:16]} Nd3 {[%emt 0:01:14]} 47. Rb7+ {[%emt 0:00:36]} Kg8 {[%emt 0:00:01]} 48. Kg2 {[%emt 0:00:17]} g5 {[%emt 0:01:42]} 49. Kg3 {[%emt 0:00:23]} Kh8 {[%emt 0:00:29]} 50. Re7 {[%emt 0:00:16]} e5 {[%emt 0:01:43]} 51. f3 {[%emt 0:02:07]} Kg8 {[%emt 0:00:13]} 52. h4 {[%emt 0:01:09]} gxh4+ {[%emt 0:00:08]} 53. Kxh4 {[%emt 0:00:10]} Nf4 {[%emt 0:00:03]} 54. Kg5 {[%emt 0:00:13]} Ng6 {[%emt 0:00:25]} 55. Ra7 {[%emt 0:00:32]} Nf4 {[%emt 0:01:42]} 56. Kf6 {[%emt 0:00:15]} 1-0

[Event "ROU-chT 1st League 2019"]
[Site "Mamaia"]
[Date "2019.09.24"]
[Round "4.6"]
[White "Craciun, Alexandru-Emilian"]
[Black "Banzea, Alexandru-Bogdan"]
[Result "0-1"]
[ECO "B18"]
[WhiteElo "2077"]
[BlackElo "2401"]
[Annotator "NA"]
[PlyCount "138"]
[EventDate "2019.09.21"]
[EventType "team-tourn"]
[EventCountry "ROU"]
[SourceTitle "playchess.com"]
[Source "ChessBase"]
[SourceQuality "1"]
[TimeControl "40/5400+30:1800+30"]

1. e4 {[%emt 0:00:00]} c6 {[%emt 0:00:00]} 2. d4 {[%emt 0:00:32]} d5 {[%emt 0:00:03]} 3. Nc3 {[%emt 0:00:28]} dxe4 {[%emt 0:00:54]} 4. Nxe4 {[%emt 0:00:12]} Bf5 {[%emt 0:00:46]} 5. Ng3 {[%emt 0:00:21]} Bg6 {[%emt 0:00:08]} 6. h4 {[%emt 0:00:39]} h6 {[%emt 0:00:06]} 7. Nf3 {[%emt 0:00:09]} e6 {[%emt 0:00:13]} 8. h5 {[%emt 0:01:13]} Bh7 {[%emt 0:00:06]} 9. Bd3 {[%emt 0:00:10]} Bxd3 {[%emt 0:00:09]} 10. Qxd3 {[%emt 0:00:07]} Nf6 {[%emt 0:00:08]} 11. Bd2 {[%emt 0:01:30]} c5 {[%emt 0:00:17]} 12. O-O-O {[%emt 0:11:00]} Nc6 {[%emt 0:03:30]} 13. Bc3 {[%emt 0:06:23]} Be7 {[%emt 0:06:10]} 14. dxc5 {[%emt 0:09:48]} Qxd3 {[%emt 0:00:40]} 15. Rxd3 {[%emt 0:00:45]} Bxc5 {[%emt 0:00:25]} 16. Bxf6 {[%emt 0:11:41]} gxf6 {[%emt 0:00:02]} 17. Ne4 {[%emt 0:00:58]} Be7 {[%emt 0:00:03]} 18. Nd6+ {[%emt 0:07:19]} Bxd6 {[%emt 0:00:15]} 19. Rxd6 {[%emt 0:00:15]} Rg8 {[%emt 0:00:51]} 20. g3 {[%emt 0:00:35]} Rd8 {[%emt 0:00:34]} 21. Rxd8+ {[%emt 0:01:17]} Kxd8 {[%emt 0:00:05]} 22. c3 {[%emt 0:07:13]} Ke7 {[%emt 0:00:33]} 23. Kd2 {[%emt 0:01:47]} Rd8+ {[%emt 0:00:37]} 24. Ke2 {[%emt 0:00:39]} Rd5 {[%emt 0:00:11]} 25. Rh4 {[%emt 0:07:31]} f5 {[%emt 0:02:00]} 26. Nd2 {[%emt 0:04:14]} Ne5 {[%emt 0:04:34]} 27. Ra4 {[%emt 0:09:42]} a5 {[%emt 0:02:51]} 28. b4 {[%emt 0:03:25]} axb4 {[%emt 0:01:52]} 29. Rxb4 {[%emt 0:00:53]} Rd7 {[%emt 0:00:35]} 30. Nb3 {[%emt 0:01:31]} Rc7 {[%emt 0:01:08]} 31. Na5 {[%emt 0:05:28]} Rxc3 {[%emt 0:00:16]} 32. Rxb7+ {[%emt 0:00:09]} Kf6 {[%emt 0:00:56]} 33. Rb2 {[%emt 0:02:40]} Ra3 {[%emt 0:07:31]} 34. Nb3 {[%emt 0:00:26]} Nc4 {[%emt 0:01:28]} 35. Rc2 {[%emt 0:00:07]} Nb6 {[%emt 0:00:11]} 36. Nd2 {[%emt 0:03:34]} Nd5 {[%emt 0:01:31]} 37. Nc4 {[%emt 0:01:54]} Rxa2 {[%emt 0:00:27]} 38. Rxa2 {[%emt 0:00:02]} Nc3+ {[%emt 0:00:09]} 39. Ke3 {[%emt 0:00:46]} Nxa2 {[%emt 0:00:06]} 40. f4 {[%emt 0:00:00]} Nc3 {[%emt 0:00:00]} 41. Kf3 {[%emt 0:06:57]} Nd5 {[%emt 0:03:09]} 42. Ne5 {[%emt 0:12:00]} Kg7 {[%emt 0:01:35]} 43. g4 {[%emt 0:00:24]} fxg4+ {[%emt 0:00:36]} 44. Kxg4 {[%emt 0:00:24]} Ne7 {[%emt 0:04:46]} 45. Kh4 {[%emt 0:02:41]} f6 {[%emt 0:01:31]} 46. Nd3 {[%emt 0:00:58]} Nc6 {[%emt 0:02:37]} 47. Kg3 {[%emt 0:02:42]} Kf7 {[%emt 0:01:19]} 48. Nf2 {[%emt 0:01:05]} f5 {[%emt 0:01:22]} 49. Nd3 {[%emt 0:07:27]} Ke7 {[%emt 0:00:18]} 50. Ne1 {[%emt 0:01:53]} Kd6 {[%emt 0:00:41]} 51. Kf3 {[%emt 0:00:45]} e5 {[%emt 0:05:17]} 52. fxe5+ {[%emt 0:00:25]} Kxe5 {[%emt 0:00:08]} 53. Nd3+ {[%emt 0:00:35]} Kf6 {[%emt 0:00:06]} 54. Nc5 {[%emt 0:00:44]} Nd4+ {[%emt 0:00:37]} 55. Ke3 {[%emt 0:00:29]} Ne6 {[%emt 0:01:08]} 56. Nb7 {[%emt 0:00:13]} Ke5 {[%emt 0:01:30]} 57. Na5 {[%emt 0:00:20]} Ng7 {[%emt 0:00:36]} 58. Nc6+ {[%emt 0:00:37]} Kf6 {[%emt 0:00:07]} 59. Kf3 {[%emt 0:00:32]} Nxh5 {[%emt 0:00:11]} 60. Nd4 {[%emt 0:00:20]} Ng7 {[%emt 0:00:57]} 61. Kg3 {[%emt 0:00:20]} Ke5 {[%emt 0:01:26]} 62. Ne2 {[%emt 0:00:25]} Ke4 {[%emt 0:04:33]} 63. Nc3+ {[%emt 0:00:28]} Kd4 {[%emt 0:01:31]} 64. Ne2+ {[%emt 0:00:28]} Ke3 {[%emt 0:00:32]} 65. Nf4 {[%emt 0:00:10]} Ke4 {[%emt 0:00:04]} 66. Ne2 {[%emt 0:01:20]} Ne6 {[%emt 0:02:01]} 67. Nc3+ {[%emt 0:00:49]} Kd4 {[%emt 0:00:18]} 68. Ne2+ {[%emt 0:00:27]} Ke3 {[%emt 0:00:25]} 69. Ng1 {[%emt 0:00:04]} Ng5 {[%emt 0:00:48]} 0-1